bitfinex/quotes_BTCUSD_20250803
["timestamp","ask_amount","ask_price","bid_price","bid_amount"]
[1754193936972,0.1878062,113760.0,113750.0,0.09712454]
[1754193937185,0.1878062,113760.0,113750.0,0.55565779]
[1754193938820,0.1878062,113760.0,113750.0,0.03288]
[1754193939071,4.0268392,113760.0,113750.0,0.03288]
[1754193940211,4.02684291,113760.0,113750.0,0.03288]
[1754193940990,4.5496207,113760.0,113750.0,0.03288]
[1754193941191,4.02684291,113760.0,113750.0,0.55565779]
[1754193941713,4.02684291,113760.0,113750.0,0.03288]
[1754193941927,4.5496207,113760.0,113750.0,0.002]
[1754193942138,4.58500873,113760.0,113750.0,0.002]
[1754193943258,4.06223094,113760.0,113750.0,0.002]
[1754193943476,0.74597573,113760.0,113750.0,0.002]
[1754193943681,4.58500873,113760.0,113750.0,0.002]
[1754193944602,5.10778652,113760.0,113750.0,0.002]
[1754193944825,4.58500873,113760.0,113750.0,0.002]
[1754193945460,0.74597573,113760.0,113750.0,0.002]
[1754193945895,4.58500873,113760.0,113750.0,0.002]
[1754193946328,4.6040313,113760.0,113750.0,0.002]
[1754193948851,4.6040518,113760.0,113750.0,0.002]
[1754193950053,4.61781756,113760.0,113750.0,0.002]
[1754193951704,4.61781331,113760.0,113750.0,0.002]
[1754193951983,5.1405911,113760.0,113750.0,0.002]
[1754193952983,5.14059358,113760.0,113750.0,0.002]
[1754193953166,5.3164023,113760.0,113750.0,0.002]
[1754193953431,5.34018116,113760.0,113750.0,0.002]
[1754193953655,5.38263018,113760.0,113750.0,0.001]
[1754193954558,5.38261682,113760.0,113750.0,0.001]
[1754193954786,5.39140725,113760.0,113720.0,0.05763]
[1754193955001,3.839033,113730.0,113720.0,0.05763]
[1754193955226,3.98980163,113730.0,113720.0,0.03554]
[1754193955905,3.98980163,113730.0,113720.0,0.05968]
[1754193956364,3.98980163,113730.0,113720.0,0.06168]
[1754193956581,3.973313,113730.0,113720.0,0.06168]
[1754193957082,3.9909632,113730.0,113720.0,0.06168]
[1754193957926,3.9909632,113730.0,113720.0,0.06368]
[1754193958360,4.00473135,113730.0,113720.0,0.06368]
[1754193958890,4.52750914,113730.0,113720.0,0.06368]
[1754193959514,4.52907914,113730.0,113720.0,0.06368]
[1754193959735,4.52907914,113730.0,113720.0,0.06163]
[1754193959954,0.71613417,113730.0,113720.0,0.05854]
[1754193960171,0.19335638,113730.0,113720.0,0.05854]
[1754193960394,4.03238938,113730.0,113720.0,0.05854]
[1754193960614,4.55516717,113730.0,113720.0,0.0616]
[1754193960821,4.55516717,113730.0,113720.0,0.05854]
[1754193961043,5.10264422,113730.0,113720.0,0.0344]
[1754193961247,5.11006422,113730.0,113720.0,0.0344]
[1754193961451,4.58728643,113730.0,113720.0,0.0344]
[1754193961693,4.58826643,113730.0,113720.0,0.0344]
[1754193962133,4.58826643,113730.0,113720.0,0.0324]
[1754193962319,4.58728643,113730.0,113720.0,0.0324]
[1754193962518,4.58728643,113730.0,113720.0,0.0334]
[1754193962889,4.52967572,113730.0,113720.0,0.0334]
[1754193963308,4.52967572,113730.0,113720.0,0.0314]
[1754193964162,4.52967572,113730.0,113720.0,0.0324]
[1754193964615,4.51590757,113730.0,113720.0,0.0324]
[1754193965046,4.05074049,113730.0,113720.0,0.0324]
[1754193965270,4.51590757,113730.0,113720.0,0.0324]
[1754193965505,4.04332049,113730.0,113720.0,0.0324]
[1754193965724,4.50848757,113730.0,113720.0,0.0324]
[1754193965950,4.50848757,113730.0,113720.0,0.05715]
[1754193966192,4.50848757,113730.0,113720.0,0.0324]
[1754193966850,4.04332049,113730.0,113720.0,0.05715]
[1754193967282,4.50848757,113730.0,113720.0,0.05715]
[1754193967528,4.52225687,113730.0,113720.0,0.05715]
[1754193967729,4.52224586,113730.0,113720.0,0.05715]
[1754193968654,0.68321286,113730.0,113720.0,0.05715]
[1754193968886,4.52224586,113730.0,113720.0,0.05715]
[1754193969837,0.68321286,113730.0,113720.0,0.05715]
[1754193970107,4.52224586,113730.0,113720.0,0.05715]
[1754193970739,4.5222251,113730.0,113720.0,0.05425]
[1754193974303,4.54117377,113730.0,113720.0,0.05425]
[1754193974518,4.54117377,113730.0,113720.0,0.0295]
[1754193974718,4.52740447,113730.0,113720.0,0.0295]
[1754193975158,4.52740447,113730.0,113720.0,0.05425]
[1754193975978,0.68837147,113730.0,113720.0,0.05425]
[1754193976194,4.52740447,113730.0,113720.0,0.05425]
[1754193976512,4.52740447,113730.0,113720.0,0.0295]
[1754193976738,4.38812447,113730.0,113720.0,0.0295]
[1754193976933,4.38812447,113730.0,113720.0,0.05425]
[1754193977759,4.53609379,113730.0,113720.0,0.0295]
[1754193978643,4.63609379,113730.0,113720.0,0.0295]
[1754193979484,4.63611338,113730.0,113720.0,0.0295]
[1754193980357,4.63611338,113730.0,113720.0,0.05425]
[1754193981653,4.63611338,113730.0,113720.0,0.0295]
[1754193982988,5.21761816,113730.0,113720.0,0.0295]
[1754193983204,5.21761816,113730.0,113720.0,0.05425]
[1754193985049,1.37858516,113730.0,113720.0,0.05425]
[1754193985270,5.21761816,113730.0,113720.0,0.05425]
[1754193985712,4.69428223,113730.0,113720.0,0.05425]
[1754193985937,5.21761816,113730.0,113720.0,0.05425]
[1754193986425,4.1709463,113730.0,113720.0,0.05425]
[1754193986655,5.24139702,113730.0,113720.0,0.05731]
[1754193987321,4.71806109,113730.0,113720.0,0.05731]
[1754193990370,4.16686713,113730.0,113720.0,0.58270593]
[1754193990592,3.99531895,113730.0,113720.0,0.58270593]
[1754193990815,4.12931895,113730.0,113720.0,0.58270593]
[1754193991037,0.15628595,113730.0,113720.0,0.58270593]
[1754193991271,0.29032595,113730.0,113720.0,0.58270593]
[1754193991531,0.27137728,113730.0,113720.0,0.64101652]
[1754193991955,0.27137728,113730.0,113720.0,0.66646352]
[1754193992166,0.27137728,113730.0,113720.0,0.66546352]
[1754193992382,0.26315521,113730.0,113720.0,0.14612759]
[1754193992590,0.26315521,113730.0,113720.0,0.61415293]
[1754193993040,0.26315521,113730.0,113720.0,0.55571463]
[1754193993474,0.26045767,113730.0,113720.0,0.55571463]
[1754193993627,0.12641767,113730.0,113720.0,0.55571463]
[1754193993877,0.26049767,113730.0,113720.0,0.55571463]
[1754193994025,0.26049767,113730.0,113720.0,0.64455219]
[1754193994662,0.25481767,113730.0,113720.0,0.64455219]
[1754193994872,0.2410502,113730.0,113720.0,0.17965456]
[1754193995091,0.2410502,113730.0,113720.0,0.55571463]
[1754193995732,0.2412502,113730.0,113720.0,0.55571463]
[1754193998874,0.2550177,113730.0,113720.0,0.090817]
[1754193999117,0.2550177,113730.0,113720.0,0.55571463]
[1754193999322,0.2550177,113730.0,113720.0,0.64455219]
[1754194005101,3.839033,113740.0,113720.0,0.64455219]
[1754194005329,0.01376751,113730.0,113720.0,0.61674219]
[1754194005992,0.01376751,113730.0,113720.0,0.64053219]
[1754194006203,0.16408643,113730.0,113720.0,0.64053219]
[1754194006423,0.14792751,113730.0,113720.0,0.64253219]
[1754194007511,0.14792751,113730.0,113720.0,0.64053219]
[1754194007720,0.14792751,113730.0,113720.0,0.61408519]
[1754194007930,0.14792751,113730.0,113720.0,0.61708519]
[1754194010678,0.16363381,113730.0,113720.0,0.15218756]
[1754194011100,0.16363381,113730.0,113720.0,0.61708519]
[1754194012939,0.16363381,113730.0,113720.0,0.67526406]
[1754194013898,0.16363381,113730.0,113720.0,0.15218756]
[1754194014097,0.16363381,113730.0,113720.0,0.67526406]
[1754194018112,0.66363381,113730.0,113720.0,0.67526406]
[1754194018293,0.16363381,113730.0,113720.0,0.67526406]
[1754194023171,0.16363381,113730.0,113720.0,0.15218756]
[1754194023370,0.16363381,113730.0,113720.0,0.67526406]
[1754194024271,0.68828031,113730.0,113720.0,0.06335]
[1754194024477,0.70479341,113730.0,113720.0,0.06335]
[1754194024978,0.18171691,113730.0,113720.0,0.06335]
[1754194026432,0.18143691,113730.0,113720.0,0.06335]
[1754194027371,0.16492381,113730.0,113720.0,0.06335]
[1754194027574,0.16492381,113730.0,113720.0,0.13806535]
[1754194028010,0.16492381,113730.0,113720.0,0.13600535]
[1754194028917,0.16492381,113730.0,113720.0,0.13200535]
[1754194029606,0.16492381,113730.0,113720.0,0.13400535]
[1754194030014,0.16492381,113730.0,113720.0,0.13100535]
[1754194030268,0.16492381,113730.0,113720.0,0.13300535]
[1754194030498,4.00395681,113730.0,113720.0,0.13300535]
[1754194030906,4.02046676,113730.0,113720.0,0.13300535]
[1754194031176,4.02046676,113730.0,113720.0,0.65810185]
[1754194031886,4.02046676,113730.0,113720.0,0.13502535]
[1754194032574,4.02046676,113730.0,113720.0,0.06031]
[1754194033239,4.0204654,113730.0,113720.0,0.06031]
[1754194034552,4.00669789,113730.0,113720.0,0.06031]
[1754194034986,4.00669789,113730.0,113720.0,0.5833865]
[1754194036780,4.00669789,113730.0,113720.0,0.06031]
[1754194036991,4.00669789,113730.0,113720.0,0.5833865]
[1754194037213,4.00669789,113730.0,113720.0,0.65515315]
[1754194037432,4.02046565,113730.0,113720.0,0.65515315]
[1754194037848,4.00395706,113730.0,113720.0,0.65515315]
[1754194039813,4.00395706,113730.0,113720.0,0.13207665]
[1754194042252,3.87007706,113730.0,113720.0,0.06031]
[1754194042425,0.16335406,113730.0,113720.0,0.5833865]
[1754194043897,0.16335406,113730.0,113720.0,0.06031]
[1754194044106,0.16335406,113730.0,113720.0,0.5833865]
[1754194044979,0.0157063,113730.0,113720.0,0.9233865]
[1754194045252,0.13388,113740.0,113720.0,0.48914756]
[1754194045492,0.13388,113740.0,113730.0,0.55304468]
[1754194045717,0.13388,113740.0,113730.0,0.6867465]
[1754194046139,4.3621095,113750.0,113730.0,0.5528665]
[1754194046374,0.13388,113740.0,113730.0,0.61691406]
[1754194046624,0.13388,113740.0,113730.0,0.61791406]
[1754194047062,0.13388,113740.0,113730.0,0.64170406]
[1754194047769,0.13388,113740.0,113730.0,0.64270406]
[1754194047990,0.14764585,113740.0,113730.0,0.64270406]
[1754194048204,0.01376585,113740.0,113730.0,0.64270406]
[1754194049152,0.04228652,113740.0,113730.0,0.64270406]
[1754194049375,0.54228652,113740.0,113730.0,0.64270406]
[1754194049607,0.04228652,113740.0,113730.0,0.64270406]
[1754194050067,0.04228652,113740.0,113730.0,0.64370406]
[1754194050971,0.54228652,113740.0,113730.0,0.64370406]
[1754194051201,0.04228652,113740.0,113730.0,0.64370406]
[1754194054573,0.04228652,113740.0,113730.0,0.12062756]
[1754194055256,0.54228652,113740.0,113730.0,0.12062756]
[1754194055475,0.04228652,113740.0,113730.0,0.12062756]
[1754194057799,0.56536302,113740.0,113730.0,0.12062756]
[1754194058010,0.56536302,113740.0,113730.0,0.16563]
[1754194058438,0.56693302,113740.0,113730.0,0.16063]
[1754194058659,0.56693302,113740.0,113730.0,0.16359]
[1754194058894,0.56693302,113740.0,113730.0,0.16573]
[1754194059163,1.06536302,113740.0,113730.0,0.16573]
[1754194059376,0.56536302,113740.0,113730.0,0.12072756]
[1754194062487,1.06536302,113740.0,113730.0,0.12072756]
[1754194062706,0.56536302,113740.0,113730.0,0.12072756]
[1754194063180,0.04228652,113740.0,113730.0,0.12072756]
[1754194065736,0.56536302,113740.0,113730.0,0.12072756]
[1754194066182,0.54228652,113740.0,113730.0,0.12072756]
[1754194066403,0.04228652,113740.0,113730.0,0.12072756]
[1754194067013,0.04228652,113740.0,113730.0,0.03189]
[1754194071450,0.56536302,113740.0,113730.0,0.03189]
[1754194072116,0.34844073,113740.0,113730.0,0.03189]
[1754194072346,4.339033,113740.0,113730.0,0.03189]
[1754194072565,0.01376607,113740.0,113730.0,0.03189]
[1754194072789,0.04294115,113740.0,113730.0,0.03189]
[1754194073233,0.04294115,113740.0,113730.0,0.12072756]
[1754194074514,0.02917508,113740.0,113730.0,0.12072756]
[1754194074724,0.6569565,113750.0,113730.0,0.12072756]
[1754194074933,3.839033,113740.0,113730.0,0.12072756]
[1754194075583,0.01376606,113740.0,113730.0,0.11972756]
[1754194076843,0.01376606,113740.0,113730.0,0.12072756]
[1754194077862,0.04192347,113740.0,113730.0,0.12072756]
[1754194080454,0.04192347,113740.0,113730.0,1.16907874]
[1754194080668,0.04192347,113740.0,113730.0,1.16688056]
[1754194080886,0.04192347,113740.0,113730.0,1.50688056]
[1754194081107,0.04192347,113740.0,113730.0,1.53332256]
[1754194083102,0.01376606,113740.0,113730.0,1.63940442]
[1754194083659,0.00047555,113760.0,113750.0,0.8630765]
[1754194083908,0.00047555,113760.0,113750.0,1.11293415]
[1754194084621,0.02928473,113760.0,113750.0,1.11293415]
[1754194084814,0.00047555,113760.0,113750.0,1.11293415]
[1754194085533,0.00047555,113760.0,113750.0,0.69793951]
[1754194085755,0.00047555,113760.0,113750.0,1.74409251]
[1754194086469,0.01423677,113760.0,113750.0,1.74409251]
[1754194086997,0.01423677,113760.0,113750.0,1.22101601]
[1754194087244,0.01423677,113760.0,113750.0,1.22401601]
[1754194088339,0.5230765,113790.0,113760.0,0.5230765]
[1754194088605,0.01376183,113770.0,113760.0,0.08888511]
[1754194088825,3.839033,113780.0,113760.0,0.74785161]
[1754194089046,3.839033,113780.0,113770.0,0.5230765]
[1754194089272,3.85279423,113780.0,113770.0,0.5527865]
[1754194089488,0.01376123,113780.0,113770.0,0.5527865]
[1754194089711,0.01376123,113780.0,113770.0,0.10725716]
[1754194090588,0.04272179,113780.0,113770.0,0.10945457]
[1754194091649,0.04272179,113780.0,113770.0,0.10725716]
[1754194092382,0.56736829,113780.0,113770.0,0.16351]
[1754194092635,0.56736829,113780.0,113770.0,0.16142]
[1754194096215,0.54429179,113780.0,113770.0,0.16142]
[1754194096430,0.56736829,113780.0,113770.0,0.16142]
[1754194097213,1.06736829,113780.0,113770.0,0.16142]
[1754194097477,0.04429179,113780.0,113770.0,0.17401986]
[1754194097739,0.56736829,113780.0,113770.0,0.17610986]
[1754194099019,0.04429179,113780.0,113770.0,0.17610986]
[1754194099021,1.06736829,113780.0,113770.0,0.17610986]
[1754194099253,0.56736829,113780.0,113770.0,0.17610986]
[1754194102002,0.04429179,113780.0,113770.0,0.17610986]
[1754194102433,0.04272179,113780.0,113770.0,0.17610986]
[1754194103772,0.04272179,113780.0,113770.0,0.69918636]
[1754194105990,0.56579829,113780.0,113770.0,0.17610986]
[1754194107594,0.04272179,113780.0,113770.0,0.17610986]
[1754194107824,0.54272179,113780.0,113770.0,0.17610986]
[1754194108521,0.54272179,113780.0,113770.0,0.27610986]
[1754194108771,0.56579829,113780.0,113770.0,0.26351]
[1754194109258,0.57403884,113780.0,113770.0,0.26351]
[1754194110404,0.05096234,113780.0,113770.0,0.26351]
[1754194110639,0.57403884,113780.0,113770.0,0.26351]
[1754194111110,0.57560884,113780.0,113770.0,0.26351]
[1754194112009,0.57560884,113780.0,113770.0,0.33821331]
[1754194112215,0.5921043,113780.0,113770.0,0.33821331]
[1754194112426,0.5905343,113780.0,113770.0,0.33821331]
[1754194113460,0.5921043,113780.0,113770.0,0.33821331]
[1754194116147,0.59212112,113780.0,113770.0,0.33821331]
[1754194118789,0.06904462,113780.0,113770.0,0.33821331]
[1754194119002,0.59212112,113780.0,113770.0,0.33821331]
[1754194121795,0.56736829,113780.0,113770.0,0.33821331]
[1754194122026,0.59213768,113780.0,113770.0,0.33821331]
[1754194123658,0.06749118,113780.0,113770.0,0.33821331]
[1754194123886,0.59056768,113780.0,113770.0,0.33821331]
[1754194124803,0.06749118,113780.0,113770.0,0.33821331]
[1754194126363,0.59056768,113780.0,113770.0,0.33821331]
[1754194127617,0.59056727,113780.0,113770.0,0.33821331]
[1754194128599,0.05097784,113780.0,113770.0,1.20128981]
[1754194128798,0.02896056,113780.0,113770.0,1.20128981]
[1754194129211,3.839033,113790.0,113770.0,1.22772281]
[1754194129517,0.00825251,113790.0,113780.0,0.5498065]
[1754194129755,0.00825251,113790.0,113780.0,0.64067406]
[1754194129958,0.13388,113800.0,113780.0,0.66710706]
[1754194130162,0.15863796,113800.0,113790.0,0.13388]
[1754194130374,0.00825265,113800.0,113790.0,0.16264]
[1754194130574,0.02201186,113800.0,113790.0,0.189073]
[1754194130727,0.54508836,113800.0,113790.0,0.26917171]
[1754194130945,0.05801823,113800.0,113790.0,0.26917171]
[1754194131165,0.05801823,113800.0,113790.0,0.189073]
[1754194132223,0.04976558,113800.0,113790.0,0.189073]
[1754194134802,0.57284208,113800.0,113790.0,0.189073]
[1754194135419,0.57284208,113800.0,113790.0,0.16264]
[1754194137971,0.57441208,113800.0,113790.0,0.16264]
[1754194138642,0.57441208,113800.0,113790.0,0.19043096]
[1754194140486,0.57441208,113800.0,113790.0,0.02354]
[1754194140683,3.839033,113790.0,113780.0,0.160232]
[1754194140913,1.047723,113790.0,113780.0,0.1338]
[1754194141153,1.21454103,113790.0,113770.0,0.36358731]
[1754194141359,0.5230765,113780.0,113770.0,0.70358731]
[1754194141568,0.5230765,113780.0,113770.0,0.70571731]
[1754194142832,0.5230765,113780.0,113770.0,0.70871731]
[1754194143724,0.01376011,113780.0,113770.0,0.70871731]
[1754194143956,0.01376011,113780.0,113770.0,0.71071731]
[1754194144204,0.53683661,113780.0,113770.0,0.71071731]
[1754194145950,0.01376011,113780.0,113770.0,0.71071731]
[1754194146170,0.53683661,113780.0,113770.0,0.71071731]
[1754194147060,0.53683661,113780.0,113770.0,0.57639731]
[1754194147291,0.53683661,113780.0,113770.0,0.71087731]
[1754194147963,0.5230765,113780.0,113770.0,0.71087731]
[1754194148191,0.53683667,113780.0,113770.0,0.71087731]
[1754194152441,0.53683667,113780.0,113770.0,0.68444331]
[1754194152865,0.01376017,113780.0,113770.0,0.68444331]
[1754194153492,0.01376017,113780.0,113770.0,1.20751981]
[1754194157254,0.01376017,113780.0,113770.0,1.22496883]
[1754194157473,0.17040637,113800.0,113770.0,1.22496883]
[1754194157684,0.5673265,113800.0,113780.0,0.65967372]
[1754194157909,0.5673265,113800.0,113790.0,0.00213]
[1754194158132,0.5673265,113800.0,113790.0,0.03026]
[1754194158349,1.0673265,113800.0,113790.0,0.03026]
[1754194158559,0.5673265,113800.0,113790.0,0.03026]
[1754194159000,0.04425,113800.0,113790.0,0.03026]
[1754194159221,0.04425,113800.0,113790.0,0.05560976]
[1754194160321,0.04425,113800.0,113790.0,0.16466]
[1754194160735,0.05800919,113800.0,113790.0,0.16466]
[1754194161203,0.0580104,113800.0,113790.0,0.16466]
[1754194161960,0.0595804,113800.0,113790.0,0.16466]
[1754194166105,0.52400924,113800.0,113790.0,0.16466]
[1754194166547,0.59882884,113810.0,113790.0,0.19000976]
[1754194166739,0.03641941,113800.0,113790.0,0.19000976]
[1754194167004,3.839033,113800.0,113790.0,0.19000976]
[1754194167884,3.839033,113800.0,113790.0,0.18988976]
[1754194169659,3.85279217,113800.0,113790.0,0.18988976]
[1754194169828,0.01375917,113800.0,113790.0,0.18988976]
[1754194170258,0.51375917,113800.0,113790.0,0.18988976]
[1754194170472,0.01375917,113800.0,113790.0,0.18988976]
[1754194170906,0.01375917,113800.0,113790.0,0.16454]
[1754194171459,0.04923769,113800.0,113790.0,0.16454]
[1754194174565,0.53547852,113800.0,113790.0,0.16454]
[1754194174817,0.03547852,113800.0,113790.0,0.16454]
[1754194175280,3.839033,113800.0,113790.0,0.16454]
[1754194176648,0.03658756,113800.0,113790.0,0.16454]
[1754194177072,3.839033,113800.0,113790.0,0.16454]
[1754194178409,3.8472824,113800.0,113790.0,0.16454]
[1754194178616,0.0082494,113800.0,113790.0,0.16454]
[1754194178813,0.02200854,113800.0,113790.0,0.16454]
[1754194179020,0.54452871,113800.0,113790.0,0.16454]
[1754194179298,0.54452871,113800.0,113790.0,0.26454]
[1754194181801,0.58020042,113800.0,113790.0,0.26454]
[1754194182192,0.05768025,113800.0,113790.0,0.26454]
[1754194182418,0.59670261,113800.0,113790.0,0.27839982]
[1754194182619,0.52252017,113800.0,113790.0,0.27839982]
[1754194182833,0.53627938,113800.0,113790.0,0.27839982]
[1754194184782,0.53627938,113800.0,113790.0,0.2643]
[1754194184957,0.53627938,113800.0,113790.0,0.26217]
[1754194186191,0.57117476,113800.0,113790.0,0.26217]
[1754194188760,0.04865459,113800.0,113790.0,0.26217]
[1754194188965,0.57117476,113800.0,113790.0,0.26217]
[1754194189182,0.04865459,113800.0,113790.0,0.26217]
[1754194189397,0.57117476,113800.0,113790.0,0.26217]
[1754194190982,0.54865459,113800.0,113790.0,0.26217]
[1754194191229,0.57117476,113800.0,113790.0,0.26217]
[1754194192099,0.38222175,113800.0,113790.0,0.26217]
[1754194192310,0.39598107,113800.0,113790.0,0.26217]
[1754194193590,0.39598107,113800.0,113790.0,0.28882161]
[1754194194541,0.40699033,113800.0,113790.0,0.28882161]
[1754194194741,0.40699033,113800.0,113790.0,0.15478161]
[1754194194899,0.40699033,113800.0,113790.0,0.28874161]
[1754194195115,0.40699033,113800.0,113790.0,0.29076161]
[1754194195806,0.40699021,113800.0,113790.0,0.29076161]
[1754194196027,0.44325222,113800.0,113790.0,0.29076161]
[1754194197067,0.06103047,113800.0,113790.0,0.29076161]
[1754194197284,0.58355064,113800.0,113790.0,0.29076161]
[1754194197726,0.59730994,113800.0,113790.0,0.29076161]
[1754194198266,0.59730994,113800.0,113790.0,0.26411]
[1754194199924,0.59730994,113800.0,113790.0,0.26209]
[1754194200695,0.59730994,113800.0,113790.0,0.26412]
[1754194200884,0.59730994,113800.0,113790.0,0.13016]
[1754194201993,4.43634294,113800.0,113790.0,0.1]
[1754194202177,4.96842311,113800.0,113790.0,0.1]
[1754194204622,4.95466381,113800.0,113790.0,0.1]
[1754194205730,5.08854381,113800.0,113790.0,0.1]
[1754194206446,5.08853232,113800.0,113790.0,0.1]
[1754194209337,4.56601215,113800.0,113790.0,0.1]
[1754194209557,4.55645215,113800.0,113790.0,0.1]
[1754194210589,0.71741915,113800.0,113790.0,0.1]
[1754194210821,4.55645215,113800.0,113790.0,0.12478]
[1754194212323,4.55645215,113800.0,113790.0,0.12799]
[1754194212972,3.90005198,113800.0,113790.0,0.140789]
[1754194213203,4.55645215,113800.0,113790.0,0.142819]
[1754194214151,4.55645215,113800.0,113790.0,0.13002]
[1754194227690,4.57021203,113800.0,113790.0,0.13002]
[1754194231107,0.73117903,113800.0,113790.0,0.13002]
[1754194231485,4.57021203,113800.0,113790.0,0.13002]
[1754194233121,4.04769186,113800.0,113790.0,0.13002]
[1754194233352,4.57021203,113800.0,113790.0,0.143022]
[1754194233823,4.57017203,113800.0,113790.0,0.143022]
[1754194234672,4.55641215,113800.0,113790.0,0.143022]
[1754194235103,4.42257215,113800.0,113790.0,0.13002]
[1754194235333,4.55641215,113800.0,113790.0,0.13002]
[1754194239026,4.57017164,113800.0,113790.0,0.13002]
[1754194239473,4.43633164,113800.0,113790.0,0.13002]
[1754194239741,4.57017164,113800.0,113790.0,0.13002]
[1754194240161,4.57017164,113800.0,113790.0,0.143022]
[1754194244244,0.73113864,113800.0,113790.0,0.143022]
[1754194244484,4.57017164,113800.0,113790.0,0.143022]
[1754194246340,4.57017164,113800.0,113790.0,0.13002]
[1754194246527,4.57017655,113800.0,113790.0,0.13002]
[1754194247021,4.57017655,113800.0,113790.0,0.12799]
[1754194252174,4.04765638,113800.0,113790.0,0.12478]
[1754194252384,4.57017655,113800.0,113790.0,0.12478]
[1754194252752,4.57017655,113800.0,113790.0,0.1279]
[1754194254582,4.55641706,113800.0,113790.0,0.1279]
[1754194258253,4.55641706,113800.0,113790.0,0.1]
[1754194258864,4.57017718,113800.0,113790.0,0.12424]
[1754194259084,4.58920257,113800.0,113790.0,0.12424]
[1754194259486,4.58920257,113800.0,113790.0,0.12723]
[1754194260337,5.11944274,113800.0,113790.0,0.1]
[1754194260539,5.14553105,113800.0,113790.0,0.1]
[1754194260760,5.32127845,113800.0,113790.0,0.1]
[1754194260973,5.93646847,113800.0,113790.0,0.1]
[1754194261187,6.28435201,113800.0,113790.0,0.1]
[1754194261652,5.76183184,113800.0,113790.0,0.1]
[1754194261864,5.76383184,113800.0,113790.0,0.1]
[1754194262094,5.76283184,113800.0,113790.0,0.1]
[1754194262564,5.7548978,113800.0,113790.0,0.1]
[1754194263035,5.7538978,113800.0,113790.0,0.1]
[1754194263200,5.7558978,113800.0,113790.0,0.1]
[1754194264012,5.7588978,113800.0,113790.0,0.1]
[1754194264522,5.74513768,113800.0,113790.0,0.1]
[1754194265934,5.7589,113800.0,113790.0,0.1]
[1754194266903,5.7589,113800.0,113790.0,0.096]
[1754194268350,5.73516967,113800.0,113790.0,0.096]
[1754194270001,4.69012933,113800.0,113790.0,0.096]
[1754194270222,5.73516967,113800.0,113790.0,0.096]
[1754194274185,5.73513482,113800.0,113790.0,0.092]
[1754194274849,5.7213725,113800.0,113790.0,0.092]
[1754194278841,5.73513472,113800.0,113790.0,0.092]
[1754194280375,5.75886505,113800.0,113790.0,0.092]
[1754194281135,5.75886505,113800.0,113790.0,0.088]
[1754194285546,5.75060768,113800.0,113790.0,0.088]
[1754194285783,5.75884275,113800.0,113790.0,0.088]
[1754194287690,5.79050712,113800.0,113790.0,0.088]
[1754194288386,5.76677679,113800.0,113790.0,0.088]
[1754194288896,5.76677679,113800.0,113790.0,0.084]
[1754194291200,5.81427334,113800.0,113790.0,0.084]
[1754194291420,5.81432277,113800.0,113790.0,0.084]
[1754194291606,5.81434748,113800.0,113790.0,0.084]
[1754194292084,6.70520328,113800.0,113790.0,0.084]
[1754194292291,6.70520328,113800.0,113790.0,0.06707154]
[1754194292724,7.28246008,113800.0,113790.0,0.05826039]
[1754194292964,4.77981081,113780.0,113770.0,0.1]
[1754194293183,6.51955452,113780.0,113770.0,0.1]
[1754194293390,2.70660983,113780.0,113770.0,0.1]
[1754194293614,6.59278791,113780.0,113770.0,0.1]
[1754194293821,6.58694941,113780.0,113770.0,0.1]
[1754194294283,6.58994941,113780.0,113770.0,0.1]
[1754194294523,6.58993313,113780.0,113770.0,0.1]
[1754194294963,6.10519423,113780.0,113770.0,0.1]
[1754194295563,6.10719423,113780.0,113770.0,0.1]
[1754194296439,6.10719423,113780.0,113770.0,0.096]
[1754194296657,6.1209596,113780.0,113770.0,0.096]
[1754194299138,6.1140296,113780.0,113770.0,0.096]
[1754194300378,6.10604293,113780.0,113770.0,0.096]
[1754194301680,5.97216293,113780.0,113770.0,0.096]
[1754194301896,4.84777664,113780.0,113770.0,0.12666]
[1754194302105,4.45913647,113780.0,113770.0,0.12666]
[1754194302281,4.98165664,113780.0,113770.0,0.12666]
[1754194302481,4.99910566,113780.0,113770.0,0.12666]
[1754194302952,4.99908142,113780.0,113770.0,0.12666]
[1754194305146,4.86520142,113780.0,113770.0,0.12666]
[1754194305356,4.99908142,113780.0,113770.0,0.12666]
[1754194306410,4.66145009,113780.0,113770.0,0.03066]
[1754194306815,0.82241709,113780.0,113770.0,0.03066]
[1754194307130,4.66145009,113780.0,113770.0,0.03066]
[1754194308015,5.18397026,113780.0,113770.0,0.03066]
[1754194308720,5.1839705,113780.0,113770.0,0.03066]
[1754194310117,1.3449375,113780.0,113770.0,0.03066]
[1754194310297,5.1839705,113780.0,113770.0,0.03066]
[1754194311004,4.66145033,113780.0,113770.0,0.03066]
[1754194311211,0.82241733,113780.0,113770.0,0.03066]
[1754194311419,4.66145033,113780.0,113770.0,0.03066]
[1754194312067,0.82241733,113780.0,113770.0,0.03066]
[1754194312284,4.83722814,113780.0,113770.0,0.03066]
[1754194313872,4.83722814,113780.0,113770.0,0.02864]
[1754194314095,5.35974831,113780.0,113770.0,0.02864]
[1754194314311,5.35975502,113780.0,113770.0,0.02864]
[1754194314582,5.35975502,113780.0,113770.0,0.03066]
[1754194316418,5.38347466,113780.0,113770.0,0.03066]
[1754194317074,5.38347466,113780.0,113770.0,0.02559]
[1754194317294,5.38347691,113780.0,113770.0,0.02559]
[1754194317518,5.38347691,113780.0,113770.0,0.02864]
[1754194318356,1.54444391,113780.0,113770.0,0.02864]
[1754194318493,5.38347691,113780.0,113770.0,0.02464]
[1754194318936,5.39724457,113780.0,113770.0,0.02464]
[1754194319599,0.21824228,113770.0,113760.0,4.755e-05]
[1754194319829,5.32977699,113770.0,113760.0,4.755e-05]
[1754194320084,5.77847699,113770.0,113760.0,4.755e-05]
[1754194320303,1.93944399,113770.0,113760.0,4.755e-05]
[1754194320512,5.80492699,113770.0,113760.0,0.00308755]
[1754194320851,5.80492699,113770.0,113760.0,0.02955755]
[1754194321271,5.80592699,113770.0,113760.0,0.02955755]
[1754194322599,5.81960699,113770.0,113760.0,4.755e-05]
[1754194322812,5.81491366,113770.0,113760.0,4.755e-05]
[1754194323027,5.8139076,113770.0,113760.0,0.02955755]
[1754194323431,1.98964109,113770.0,113760.0,0.02955755]
[1754194323644,5.82867409,113770.0,113760.0,0.02955755]
[1754194325175,5.83717409,113770.0,113760.0,0.02955755]
[1754194325695,5.83717409,113770.0,113760.0,0.02555755]
[1754194326117,4.79213375,113770.0,113760.0,0.02555755]
[1754194326317,5.83717409,113770.0,113760.0,0.02555755]
[1754194326759,5.83717409,113770.0,113760.0,0.02760755]